Buisness Unit ,Buisness Code,Service Code,Service Label,Organisational Unit ,Expenditure  , Payment Date,Net Payment ,Transaction ,Supplier ID,Supplier Name
North West Leicestershire District Council,31UH ,HRAHRM,Housing Repairs,HRA Housing Repairs & Maintenance,Coalville,02/04/2014,603.00,1281205,A035827,Novus Property Solutions Limited
North West Leicestershire District Council,31UH ,HRAHRM,Housing Repairs,HRA Housing Repairs & Maintenance,Coalville,02/04/2014,"2,424.80",1281206,A035827,Novus Property Solutions Limited
North West Leicestershire District Council,31UH ,HRAHRM,Housing Repairs,HRA Housing Repairs & Maintenance,Internal Painting,02/04/2014,"1,814.70",1281207,A035827,Novus Property Solutions Limited
North West Leicestershire District Council,31UH ,HRAHRM,Housing Repairs,HRA Housing Repairs & Maintenance,Greenhill,02/04/2014,989.00,1281208,A035827,Novus Property Solutions Limited
North West Leicestershire District Council,31UH ,HRAHRM,Housing Repairs,HRA Housing Repairs & Maintenance,Albert Vilage etc,02/04/2014,"5,760.00",1281211,A035827,Novus Property Solutions Limited
North West Leicestershire District Council,31UH ,HRAHRM,Housing Repairs,HRA Housing Repairs & Maintenance,Contract Payments (Dws) Ext,02/04/2014,"1,010.00",1281212,A035827,Novus Property Solutions Limited
North West Leicestershire District Council,31UH ,HRAHRM,Housing Repairs,HRA Housing Repairs & Maintenance,Coalville,02/04/2014,"1,841.00",1281214,A035827,Novus Property Solutions Limited
North West Leicestershire District Council,31UH ,HRAHRM,Housing Repairs,HRA Housing Repairs & Maintenance,Coalville,02/04/2014,"1,566.00",1281215,A035827,Novus Property Solutions Limited
North West Leicestershire District Council,31UH ,HRAHRM,Housing Repairs,HRA Housing Repairs & Maintenance,Contract Payments (Dws) Ext,02/04/2014,848.00,1281217,A035827,Novus Property Solutions Limited
North West Leicestershire District Council,31UH ,HRAHRM,Housing Repairs,HRA Housing Repairs & Maintenance,Contract Payments (Dws) Ext,02/04/2014,673.00,1281218,A035827,Novus Property Solutions Limited
North West Leicestershire District Council,31UH ,HRAHRM,Housing Repairs,HRA Housing Repairs & Maintenance,Ellistown etc,02/04/2014,"1,376.50",1281219,A035827,Novus Property Solutions Limited
North West Leicestershire District Council,31UH ,HRAHRM,Housing Repairs,HRA Housing Repairs & Maintenance,Kegworth etc,02/04/2014,"1,522.50",1281220,A035827,Novus Property Solutions Limited
North West Leicestershire District Council,31UH ,HRAHRM,Housing Repairs,HRA Housing Repairs & Maintenance,Albert Vilage etc,02/04/2014,999.00,1281221,A035827,Novus Property Solutions Limited
North West Leicestershire District Council,31UH ,HRAHRM,Housing Repairs,HRA Housing Repairs & Maintenance,Albert Vilage etc,02/04/2014,793.00,1281222,A035827,Novus Property Solutions Limited
North West Leicestershire District Council,31UH ,HRAHRM,Housing Repairs,HRA Housing Repairs & Maintenance,Prepainting,02/04/2014,766.00,1281224,A035827,Novus Property Solutions Limited
North West Leicestershire District Council,31UH ,HRAHRM,Housing Repairs,HRA Housing Repairs & Maintenance,Prepainting,02/04/2014,766.00,1281225,A035827,Novus Property Solutions Limited
North West Leicestershire District Council,31UH ,HRAHRM,Housing Repairs,HRA Housing Repairs & Maintenance,Prepainting,02/04/2014,766.00,1281226,A035827,Novus Property Solutions Limited
North West Leicestershire District Council,31UH ,HRAHRM,Housing Repairs,HRA Housing Repairs & Maintenance,Prepainting,02/04/2014,766.00,1281227,A035827,Novus Property Solutions Limited
North West Leicestershire District Council,31UH ,HRAHRM,Housing Repairs,HRA Housing Repairs & Maintenance,Prepainting,02/04/2014,766.00,1281228,A035827,Novus Property Solutions Limited
North West Leicestershire District Council,31UH ,HRAHRM,Housing Repairs,HRA Housing Repairs & Maintenance,Prepainting,02/04/2014,766.00,1281229,A035827,Novus Property Solutions Limited
North West Leicestershire District Council,31UH ,HRAHRM,Housing Repairs,HRA Housing Repairs & Maintenance,Prepainting,02/04/2014,766.00,1281230,A035827,Novus Property Solutions Limited
North West Leicestershire District Council,31UH ,HRAHRM,Housing Repairs,HRA Housing Repairs & Maintenance,Prepainting,02/04/2014,766.00,1281231,A035827,Novus Property Solutions Limited
North West Leicestershire District Council,31UH ,HRAHRM,Housing Repairs,HRA Housing Repairs & Maintenance,Prepainting,02/04/2014,766.00,1281232,A035827,Novus Property Solutions Limited
North West Leicestershire District Council,31UH ,HRAHRM,Housing Repairs,HRA Housing Repairs & Maintenance,Prepainting,02/04/2014,766.00,1281233,A035827,Novus Property Solutions Limited
North West Leicestershire District Council,31UH ,HRAHRM,Housing Repairs,HRA Housing Repairs & Maintenance,Prepainting,02/04/2014,766.00,1281234,A035827,Novus Property Solutions Limited
North West Leicestershire District Council,31UH ,HRAHRM,Housing Repairs,HRA Housing Repairs & Maintenance,Prepainting,02/04/2014,766.00,1281235,A035827,Novus Property Solutions Limited
North West Leicestershire District Council,31UH ,HRAHRM,Housing Repairs,HRA Housing Repairs & Maintenance,Prepainting,02/04/2014,766.00,1281236,A035827,Novus Property Solutions Limited
North West Leicestershire District Council,31UH ,HRAHRM,Housing Repairs,HRA Housing Repairs & Maintenance,Prepainting,02/04/2014,766.00,1281237,A035827,Novus Property Solutions Limited
North West Leicestershire District Council,31UH ,HRAHRM,Housing Repairs,HRA Housing Repairs & Maintenance,Prepainting,02/04/2014,766.00,1281238,A035827,Novus Property Solutions Limited
North West Leicestershire District Council,31UH ,HRAHRM,Housing Repairs,HRA Housing Repairs & Maintenance,Prepainting,02/04/2014,766.00,1281239,A035827,Novus Property Solutions Limited
North West Leicestershire District Council,31UH ,HRAHRM,Housing Repairs,HRA Housing Repairs & Maintenance,Prepainting,02/04/2014,766.00,1281240,A035827,Novus Property Solutions Limited
North West Leicestershire District Council,31UH ,HRAHRM,Housing Repairs,HRA Housing Repairs & Maintenance,Prepainting,02/04/2014,766.00,1281241,A035827,Novus Property Solutions Limited
North West Leicestershire District Council,31UH ,HRAHRM,Housing Repairs,HRA Housing Repairs & Maintenance,Prepainting,02/04/2014,766.00,1281242,A035827,Novus Property Solutions Limited
North West Leicestershire District Council,31UH ,HRAHRM,Housing Repairs,HRA Housing Repairs & Maintenance,Prepainting,02/04/2014,766.00,1281243,A035827,Novus Property Solutions Limited
North West Leicestershire District Council,31UH ,HRAHRM,Housing Repairs,HRA Housing Repairs & Maintenance,Prepainting,02/04/2014,766.00,1281244,A035827,Novus Property Solutions Limited
North West Leicestershire District Council,31UH ,HRAHRM,Housing Repairs,HRA Housing Repairs & Maintenance,Prepainting,02/04/2014,766.00,1281245,A035827,Novus Property Solutions Limited
North West Leicestershire District Council,31UH ,HRAHRM,Housing Repairs,HRA Housing Repairs & Maintenance,Prepainting,02/04/2014,766.00,1281246,A035827,Novus Property Solutions Limited
North West Leicestershire District Council,31UH ,HRAHRM,Housing Repairs,HRA Housing Repairs & Maintenance,Prepainting,02/04/2014,766.00,1281247,A035827,Novus Property Solutions Limited
North West Leicestershire District Council,31UH ,HRAHRM,Housing Repairs,HRA Housing Repairs & Maintenance,Prepainting,02/04/2014,766.00,1281248,A035827,Novus Property Solutions Limited
North West Leicestershire District Council,31UH ,HRAHRM,Housing Repairs,HRA Housing Repairs & Maintenance,Prepainting,02/04/2014,766.00,1281249,A035827,Novus Property Solutions Limited
North West Leicestershire District Council,31UH ,HRAHRM,Housing Repairs,HRA Housing Repairs & Maintenance,Prepainting,02/04/2014,766.00,1281250,A035827,Novus Property Solutions Limited
North West Leicestershire District Council,31UH ,HRAHRM,Housing Repairs,HRA Housing Repairs & Maintenance,Prepainting,02/04/2014,766.00,1281251,A035827,Novus Property Solutions Limited
North West Leicestershire District Council,31UH ,HRAHRM,Housing Repairs,HRA Housing Repairs & Maintenance,Prepainting,02/04/2014,766.00,1281252,A035827,Novus Property Solutions Limited
North West Leicestershire District Council,31UH ,HRAHRM,Housing Repairs,HRA Housing Repairs & Maintenance,Prepainting,02/04/2014,766.00,1281253,A035827,Novus Property Solutions Limited
North West Leicestershire District Council,31UH ,HRAHRM,Housing Repairs,HRA Housing Repairs & Maintenance,Prepainting,02/04/2014,766.00,1281254,A035827,Novus Property Solutions Limited
North West Leicestershire District Council,31UH ,HRAHRM,Housing Repairs,HRA Housing Repairs & Maintenance,Prepainting,02/04/2014,766.00,1281255,A035827,Novus Property Solutions Limited
North West Leicestershire District Council,31UH ,HRAHRM,Housing Repairs,HRA Housing Repairs & Maintenance,Prepainting,02/04/2014,766.00,1281256,A035827,Novus Property Solutions Limited
North West Leicestershire District Council,31UH ,HRAHRM,Housing Repairs,HRA Housing Repairs & Maintenance,Prepainting,02/04/2014,766.00,1281257,A035827,Novus Property Solutions Limited
North West Leicestershire District Council,31UH ,HRAHRM,Housing Repairs,HRA Housing Repairs & Maintenance,Prepainting,02/04/2014,766.00,1281258,A035827,Novus Property Solutions Limited
North West Leicestershire District Council,31UH ,HRAHRM,Housing Repairs,HRA Housing Repairs & Maintenance,Prepainting,02/04/2014,766.00,1281259,A035827,Novus Property Solutions Limited
North West Leicestershire District Council,31UH ,HRAHRM,Housing Repairs,HRA Housing Repairs & Maintenance,Greenhill,02/04/2014,644.00,1281260,A035827,Novus Property Solutions Limited
North West Leicestershire District Council,31UH ,HRAHRM,Housing Repairs,HRA Housing Repairs & Maintenance,Ibstock,02/04/2014,"1,971.12",1281274,A033342,J Tomlinson Ltd
North West Leicestershire District Council,31UH ,HRAHRM,Housing Repairs,HRA Housing Repairs & Maintenance,Albert Vilage etc,02/04/2014,"2,323.06",1281275,A036741,SBP Limited (Trading as Plastal & Permadoor)
North West Leicestershire District Council,31UH ,HRAHRM,Housing Repairs,HRA Housing Repairs & Maintenance,Castle Donington etc,02/04/2014,"2,321.99",1281276,A036741,SBP Limited (Trading as Plastal & Permadoor)
North West Leicestershire District Council,31UH ,HRAHRM,Housing Repairs,HRA Housing Repairs & Maintenance,Ellistown etc,02/04/2014,"1,051.06",1281277,A036741,SBP Limited (Trading as Plastal & Permadoor)
North West Leicestershire District Council,31UH ,HRAHRM,Housing Repairs,HRA Housing Repairs & Maintenance,Ibstock,02/04/2014,"1,734.16",1281279,A036741,SBP Limited (Trading as Plastal & Permadoor)
North West Leicestershire District Council,31UH ,HRAHRM,Housing Repairs,HRA Housing Repairs & Maintenance,Greenhill,02/04/2014,863.16,1281283,A031787,Laker BMS Ltd
North West Leicestershire District Council,31UH ,HRAHRM,Housing Repairs,HRA Housing Repairs & Maintenance,Measham,02/04/2014,520.36,1281284,A031787,Laker BMS Ltd
North West Leicestershire District Council,31UH ,HRAHRM,Housing Repairs,HRA Housing Repairs & Maintenance,Ibstock,02/04/2014,631.01,1281285,A031787,Laker BMS Ltd
North West Leicestershire District Council,31UH ,HRAHRM,Housing Repairs,HRA Housing Repairs & Maintenance,Ashby De la Zouche,02/04/2014,693.47,1281286,A031787,Laker BMS Ltd
North West Leicestershire District Council,31UH ,HRAHRM,Housing Repairs,HRA Housing Repairs & Maintenance,Coalville,02/04/2014,"4,006.47",1281291,A031787,Laker BMS Ltd
North West Leicestershire District Council,31UH ,HRAHRM,Housing Repairs,HRA Housing Repairs & Maintenance,Coleorton & Swannington,02/04/2014,519.20,1281320,A031787,Laker BMS Ltd
North West Leicestershire District Council,31UH ,HRAHRM,Housing Repairs,HRA Housing Repairs & Maintenance,Ibstock,02/04/2014,639.95,1281333,A031787,Laker BMS Ltd
North West Leicestershire District Council,31UH ,HRAHRM,Housing Repairs,HRA Housing Repairs & Maintenance,Ashby De la Zouche,09/04/2014,"1,920.00",1281863,A035675,Elite Sweep Service
North West Leicestershire District Council,31UH ,HRAHRM,Housing Repairs,HRA Housing Repairs & Maintenance,Miscellaneous,09/04/2014,"1,045.00",1281923,A041182,Ash Aluminium
North West Leicestershire District Council,31UH ,HRAHRM,Housing Repairs,HRA Housing Repairs & Maintenance,Miscellaneous,09/04/2014,"1,028.00",1281924,A041182,Ash Aluminium
North West Leicestershire District Council,31UH ,HRAHRM,Housing Repairs,HRA Housing Repairs & Maintenance,Miscellaneous,09/04/2014,899.00,1281928,A041182,Ash Aluminium
North West Leicestershire District Council,31UH ,HRAHRM,Housing Repairs,HRA Housing Repairs & Maintenance,Miscellaneous,09/04/2014,978.00,1281932,A041182,Ash Aluminium
North West Leicestershire District Council,31UH ,HRAHRM,Housing Repairs,HRA Housing Repairs & Maintenance,Miscellaneous,09/04/2014,852.00,1281933,A041182,Ash Aluminium
North West Leicestershire District Council,31UH ,HRAHRM,Housing Repairs,HRA Housing Repairs & Maintenance,Miscellaneous,09/04/2014,817.00,1281935,A041182,Ash Aluminium
North West Leicestershire District Council,31UH ,HRAHRM,Housing Repairs,HRA Housing Repairs & Maintenance,Miscellaneous,09/04/2014,745.00,1281936,A041182,Ash Aluminium
North West Leicestershire District Council,31UH ,HRAHRM,Housing Repairs,HRA Housing Repairs & Maintenance,Miscellaneous,09/04/2014,"1,205.00",1281937,A041182,Ash Aluminium
North West Leicestershire District Council,31UH ,HRAHRM,Housing Repairs,HRA Housing Repairs & Maintenance,Miscellaneous,09/04/2014,847.00,1281938,A041182,Ash Aluminium
North West Leicestershire District Council,31UH ,HRAHRM,Housing Repairs,HRA Housing Repairs & Maintenance,Miscellaneous,09/04/2014,745.00,1281939,A041182,Ash Aluminium
North West Leicestershire District Council,31UH ,HRAHRM,Housing Repairs,HRA Housing Repairs & Maintenance,Miscellaneous,09/04/2014,"1,080.00",1281940,A041182,Ash Aluminium
North West Leicestershire District Council,31UH ,HRAHRM,Housing Repairs,HRA Housing Repairs & Maintenance,Coalville,09/04/2014,"1,040.00",1281949,A041182,Ash Aluminium
North West Leicestershire District Council,31UH ,HRAHRM,Housing Repairs,HRA Housing Repairs & Maintenance,Miscellaneous,09/04/2014,754.00,1281950,A041182,Ash Aluminium
North West Leicestershire District Council,31UH ,HRAHRM,Housing Repairs,HRA Housing Repairs & Maintenance,Miscellaneous,09/04/2014,524.00,1281951,A041182,Ash Aluminium
North West Leicestershire District Council,31UH ,HRAHRM,Housing Repairs,HRA Housing Repairs & Maintenance,Miscellaneous,09/04/2014,564.00,1281959,A041182,Ash Aluminium
North West Leicestershire District Council,31UH ,HRAHRM,Housing Repairs,HRA Housing Repairs & Maintenance,Miscellaneous,09/04/2014,810.00,1281962,A041182,Ash Aluminium
North West Leicestershire District Council,31UH ,HRAHRM,Housing Repairs,HRA Housing Repairs & Maintenance,Whitwick,09/04/2014,"11,947.92",1281966,A031787,Laker BMS Ltd
North West Leicestershire District Council,31UH ,HRAHRM,Housing Repairs,HRA Housing Repairs & Maintenance,Coalville,09/04/2014,"1,350.00",1281971,A031787,Laker BMS Ltd
North West Leicestershire District Council,31UH ,HRAHRM,Housing Repairs,HRA Housing Repairs & Maintenance,Whitwick,09/04/2014,"2,778.14",1281981,A031787,Laker BMS Ltd
North West Leicestershire District Council,31UH ,HRAHRM,Housing Repairs,HRA Housing Repairs & Maintenance,Whitwick,09/04/2014,"3,294.83",1281982,A031787,Laker BMS Ltd
North West Leicestershire District Council,31UH ,HRAHRM,Housing Repairs,HRA Housing Repairs & Maintenance,Contract Payments (Dws) Ext,09/04/2014,515.00,1281988,A000950,Leicestershire County Council
North West Leicestershire District Council,31UH ,HRAHRM,Housing Repairs,HRA Housing Repairs & Maintenance,Contract Payments (Dws) Ext,09/04/2014,617.00,1281995,A000950,Leicestershire County Council
North West Leicestershire District Council,31UH ,HRAHRM,Housing Repairs,HRA Housing Repairs & Maintenance,Plumbing & Heating,09/04/2014,507.00,1282000,A000950,Leicestershire County Council
North West Leicestershire District Council,31UH ,HRAHRM,Housing Repairs,HRA Housing Repairs & Maintenance,Plumbing & Heating,09/04/2014,630.00,1282001,A000950,Leicestershire County Council
North West Leicestershire District Council,31UH ,HRAHRM,Housing Repairs,HRA Housing Repairs & Maintenance,Ashby De la Zouche,09/04/2014,564.63,1282018,A033342,J Tomlinson Ltd
North West Leicestershire District Council,31UH ,HRAHRM,Housing Repairs,HRA Housing Repairs & Maintenance,Kegworth etc,09/04/2014,"2,017.79",1282019,A033342,J Tomlinson Ltd
North West Leicestershire District Council,31UH ,HRAHRM,Housing Repairs,HRA Housing Repairs & Maintenance,Coalville,09/04/2014,"2,866.64",1282020,A033342,J Tomlinson Ltd
North West Leicestershire District Council,31UH ,HRAHRM,Housing Repairs,HRA Housing Repairs & Maintenance,Coalville,09/04/2014,"3,050.00",1282021,A035827,Novus Property Solutions Limited
North West Leicestershire District Council,31UH ,HRAHRM,Housing Repairs,HRA Housing Repairs & Maintenance,Coalville,09/04/2014,"1,471.00",1282022,A035827,Novus Property Solutions Limited
North West Leicestershire District Council,31UH ,HRAHRM,Housing Repairs,HRA Housing Repairs & Maintenance,Whitwick,09/04/2014,"5,751.00",1282023,A035827,Novus Property Solutions Limited
North West Leicestershire District Council,31UH ,HRAHRM,Housing Repairs,HRA Housing Repairs & Maintenance,Castle Donington etc,15/04/2014,661.09,1282317,A031086,Premier Waste and Recycling
North West Leicestershire District Council,31UH ,HRAHRM,Housing Repairs,HRA Housing Repairs & Maintenance,Greenhill,15/04/2014,"1,834.68",1282321,A031086,Premier Waste and Recycling
North West Leicestershire District Council,31UH ,HRAHRM,Housing Repairs,HRA Housing Repairs & Maintenance,Ashby De la Zouche,15/04/2014,"1,027.00",1282323,A035827,Novus Property Solutions Limited
North West Leicestershire District Council,31UH ,HRAHRM,Housing Repairs,HRA Housing Repairs & Maintenance,Greenhill,15/04/2014,"1,169.00",1282324,A035827,Novus Property Solutions Limited
North West Leicestershire District Council,31UH ,HRAHRM,Housing Repairs,HRA Housing Repairs & Maintenance,Albert Vilage etc,15/04/2014,"1,207.00",1282325,A035827,Novus Property Solutions Limited
North West Leicestershire District Council,31UH ,HRAHRM,Housing Repairs,HRA Housing Repairs & Maintenance,Albert Vilage etc,15/04/2014,960.00,1282326,A035827,Novus Property Solutions Limited
North West Leicestershire District Council,31UH ,HRAHRM,Housing Repairs,HRA Housing Repairs & Maintenance,Measham,15/04/2014,"2,479.00",1282327,A035827,Novus Property Solutions Limited
North West Leicestershire District Council,31UH ,HRAHRM,Housing Repairs,HRA Housing Repairs & Maintenance,Appleby Magna etc,15/04/2014,"2,150.00",1282328,A035827,Novus Property Solutions Limited
North West Leicestershire District Council,31UH ,HRAHRM,Housing Repairs,HRA Housing Repairs & Maintenance,Contract Payments (Dws) Ext,15/04/2014,"1,010.00",1282336,A035827,Novus Property Solutions Limited
North West Leicestershire District Council,31UH ,HRAHRM,Housing Repairs,HRA Housing Repairs & Maintenance,Prepainting,15/04/2014,766.00,1282337,A035827,Novus Property Solutions Limited
North West Leicestershire District Council,31UH ,HRAHRM,Housing Repairs,HRA Housing Repairs & Maintenance,Prepainting,15/04/2014,766.00,1282338,A035827,Novus Property Solutions Limited
North West Leicestershire District Council,31UH ,HRAHRM,Housing Repairs,HRA Housing Repairs & Maintenance,Prepainting,15/04/2014,766.00,1282339,A035827,Novus Property Solutions Limited
North West Leicestershire District Council,31UH ,HRAHRM,Housing Repairs,HRA Housing Repairs & Maintenance,Prepainting,15/04/2014,766.00,1282340,A035827,Novus Property Solutions Limited
North West Leicestershire District Council,31UH ,HRAHRM,Housing Repairs,HRA Housing Repairs & Maintenance,Prepainting,15/04/2014,766.00,1282341,A035827,Novus Property Solutions Limited
North West Leicestershire District Council,31UH ,HRAHRM,Housing Repairs,HRA Housing Repairs & Maintenance,Prepainting,15/04/2014,766.00,1282342,A035827,Novus Property Solutions Limited
North West Leicestershire District Council,31UH ,HRAHRM,Housing Repairs,HRA Housing Repairs & Maintenance,Prepainting,15/04/2014,766.00,1282343,A035827,Novus Property Solutions Limited
North West Leicestershire District Council,31UH ,HRAHRM,Housing Repairs,HRA Housing Repairs & Maintenance,Prepainting,15/04/2014,766.00,1282344,A035827,Novus Property Solutions Limited
North West Leicestershire District Council,31UH ,HRAHRM,Housing Repairs,HRA Housing Repairs & Maintenance,Prepainting,15/04/2014,766.00,1282345,A035827,Novus Property Solutions Limited
North West Leicestershire District Council,31UH ,HRAHRM,Housing Repairs,HRA Housing Repairs & Maintenance,Prepainting,15/04/2014,766.00,1282346,A035827,Novus Property Solutions Limited
North West Leicestershire District Council,31UH ,HRAHRM,Housing Repairs,HRA Housing Repairs & Maintenance,Prepainting,15/04/2014,766.00,1282347,A035827,Novus Property Solutions Limited
North West Leicestershire District Council,31UH ,HRAHRM,Housing Repairs,HRA Housing Repairs & Maintenance,Prepainting,15/04/2014,766.00,1282348,A035827,Novus Property Solutions Limited
North West Leicestershire District Council,31UH ,HRAHRM,Housing Repairs,HRA Housing Repairs & Maintenance,Prepainting,15/04/2014,766.00,1282349,A035827,Novus Property Solutions Limited
North West Leicestershire District Council,31UH ,HRAHRM,Housing Repairs,HRA Housing Repairs & Maintenance,Prepainting,15/04/2014,766.00,1282350,A035827,Novus Property Solutions Limited
North West Leicestershire District Council,31UH ,HRAHRM,Housing Repairs,HRA Housing Repairs & Maintenance,Prepainting,15/04/2014,766.00,1282351,A035827,Novus Property Solutions Limited
North West Leicestershire District Council,31UH ,HRAHRM,Housing Repairs,HRA Housing Repairs & Maintenance,Ashby De la Zouche,15/04/2014,685.75,1282385,A038041,I G Doors Limited
North West Leicestershire District Council,31UH ,HRAHRM,Housing Repairs,HRA Housing Repairs & Maintenance,Castle Donington etc,15/04/2014,887.99,1282386,A038041,I G Doors Limited
North West Leicestershire District Council,31UH ,HRAHRM,Housing Repairs,HRA Housing Repairs & Maintenance,Newbold Coleorton etc,15/04/2014,592.96,1282392,A038041,I G Doors Limited
North West Leicestershire District Council,31UH ,HRAHRM,Housing Repairs,HRA Housing Repairs & Maintenance,Albert Vilage etc,15/04/2014,510.25,1282393,A038041,I G Doors Limited
North West Leicestershire District Council,31UH ,HRAHRM,Housing Repairs,HRA Housing Repairs & Maintenance,Coalville,15/04/2014,"15,172.72",1282436,A036945,Apollo Property Services Group Limited
North West Leicestershire District Council,31UH ,HRAHRM,Housing Repairs,HRA Housing Repairs & Maintenance,Coalville,15/04/2014,"5,907.61",1282437,A036945,Apollo Property Services Group Limited
North West Leicestershire District Council,31UH ,HRAHRM,Housing Repairs,HRA Housing Repairs & Maintenance,Coalville,15/04/2014,"3,586.76",1282438,A036945,Apollo Property Services Group Limited
North West Leicestershire District Council,31UH ,HRAHRM,Housing Repairs,HRA Housing Repairs & Maintenance,Ashby De la Zouche,15/04/2014,585.39,1282439,A036945,Apollo Property Services Group Limited
North West Leicestershire District Council,31UH ,HRAHRM,Housing Repairs,HRA Housing Repairs & Maintenance,Albert Vilage etc,15/04/2014,"4,729.50",1282440,A036945,Apollo Property Services Group Limited
North West Leicestershire District Council,31UH ,HRAHRM,Housing Repairs,HRA Housing Repairs & Maintenance,Newbold Coleorton etc,15/04/2014,"1,393.97",1282441,A036945,Apollo Property Services Group Limited
North West Leicestershire District Council,31UH ,HRAHRM,Housing Repairs,HRA Housing Repairs & Maintenance,Coalville,15/04/2014,"1,003.38",1282442,A036945,Apollo Property Services Group Limited
North West Leicestershire District Council,31UH ,HRAHRM,Housing Repairs,HRA Housing Repairs & Maintenance,Ashby De la Zouche,15/04/2014,748.98,1282443,A031787,Laker BMS Ltd
North West Leicestershire District Council,31UH ,HRAHRM,Housing Repairs,HRA Housing Repairs & Maintenance,Coleorton & Swannington,15/04/2014,734.57,1282444,A031787,Laker BMS Ltd
North West Leicestershire District Council,31UH ,HRAHRM,Housing Repairs,HRA Housing Repairs & Maintenance,Plumbing & Heating,15/04/2014,"3,592.60",1282445,A000950,Leicestershire County Council
North West Leicestershire District Council,31UH ,HRAHRM,Housing Repairs,HRA Housing Repairs & Maintenance,Measham,24/04/2014,897.00,1282716,A031787,Laker BMS Ltd
North West Leicestershire District Council,31UH ,HRAHRM,Housing Repairs,HRA Housing Repairs & Maintenance,Coalville,30/04/2014,560.59,1283021,A031086,Premier Waste and Recycling
North West Leicestershire District Council,31UH ,HRAHRM,Housing Repairs,HRA Housing Repairs & Maintenance,Whitwick,30/04/2014,562.09,1283028,A031086,Premier Waste and Recycling
North West Leicestershire District Council,31UH ,HRAHRM,Housing Repairs,HRA Housing Repairs & Maintenance,Ashby De la Zouche,30/04/2014,740.95,1283040,A033342,J Tomlinson Ltd
North West Leicestershire District Council,31UH ,HRAHRM,Housing Repairs,HRA Housing Repairs & Maintenance,Albert Vilage etc,30/04/2014,828.58,1283042,A038041,I G Doors Limited
North West Leicestershire District Council,31UH ,HRAHRM,Housing Repairs,HRA Housing Repairs & Maintenance,Coalville,30/04/2014,"3,586.76",1283045,A036945,Apollo Property Services Group Limited
North West Leicestershire District Council,31UH ,HRAHRM,Housing Repairs,HRA Housing Repairs & Maintenance,Coalville,30/04/2014,"3,586.76",1283046,A036945,Apollo Property Services Group Limited
North West Leicestershire District Council,31UH ,HRAHRM,Housing Repairs,HRA Housing Repairs & Maintenance,Coalville,30/04/2014,"3,586.76",1283047,A036945,Apollo Property Services Group Limited
North West Leicestershire District Council,31UH ,HRAHRM,Housing Repairs,HRA Housing Repairs & Maintenance,Castle Donington etc,30/04/2014,"7,380.86",1283048,A036945,Apollo Property Services Group Limited
North West Leicestershire District Council,31UH ,HRAHRM,Housing Repairs,HRA Housing Repairs & Maintenance,Albert Vilage etc,30/04/2014,"6,033.01",1283049,A036945,Apollo Property Services Group Limited
North West Leicestershire District Council,31UH ,HRAHRM,Housing Repairs,HRA Housing Repairs & Maintenance,Albert Vilage etc,30/04/2014,"5,384.41",1283050,A036945,Apollo Property Services Group Limited
North West Leicestershire District Council,31UH ,HRAHRM,Housing Repairs,HRA Housing Repairs & Maintenance,Newbold Coleorton etc,30/04/2014,"1,790.34",1283052,A036945,Apollo Property Services Group Limited
North West Leicestershire District Council,31UH ,HRAHRM,Housing Repairs,HRA Housing Repairs & Maintenance,Coalville,30/04/2014,826.56,1283053,A036945,Apollo Property Services Group Limited
North West Leicestershire District Council,31UH ,HRAHRM,Housing Repairs,HRA Housing Repairs & Maintenance,Whitwick,30/04/2014,"1,088.66",1283054,A031787,Laker BMS Ltd
North West Leicestershire District Council,31UH ,HRAHRM,Housing Repairs,HRA Housing Repairs & Maintenance,Albert Vilage etc,30/04/2014,815.00,1283091,A035827,Novus Property Solutions Limited
North West Leicestershire District Council,31UH ,CS,Communications,Corporate - Customer Services,Postages,02/04/2014,"6,000.00",1281173,A000079,Neopost Limited
North West Leicestershire District Council,31UH ,ECP,Planning & Development,Environment Community Planning,Tree Officer,02/04/2014,"1,372.92",1281196,A000770,Hinckley & Bosworth Borough Council
North West Leicestershire District Council,31UH ,ECP,Planning & Development,Environment Community Planning,Consultants Fees,02/04/2014,"10,000.00",1281197,A000950,Leicestershire County Council
North West Leicestershire District Council,31UH ,ECP,Planning & Development,Environment Community Planning,External Legal Fees & Advice,02/04/2014,996.23,1281198,A034291,Valuation Office Agency
North West Leicestershire District Council,31UH ,HRAHRM,Housing Repairs,HRA Housing Repairs & Maintenance,Consultants Fees,02/04/2014,"3,392.55",1281200,A032547,Savills Commercial Limited
North West Leicestershire District Council,31UH ,HRAHRM,Housing Repairs,HRA Housing Repairs & Maintenance,Consultants Fees,02/04/2014,"3,192.55",1281201,A032547,Savills Commercial Limited
North West Leicestershire District Council,31UH ,EXCH,Finance,Exchequer Services,Expenditure against earmarked reserve,02/04/2014,850.00,1281373,A010859,Selima Limited
North West Leicestershire District Council,31UH ,EXCH,Finance,Exchequer Services,Other Miscellaneous Expenses,02/04/2014,"2,232.65",1281374,A010859,Selima Limited
North West Leicestershire District Council,31UH ,EEHL,Environmental Health,Environmental Health & Licensing,Grants,09/04/2014,"3,314.00",1281449,A038469,Leicestershire County Council
North West Leicestershire District Council,31UH ,CULTYP,Leisure & Culture,Cultural Services Children & YoungPeople,Extended Services,09/04/2014,"3,415.50",1281454,A028026,LCC Warren Hills Primary School
North West Leicestershire District Council,31UH ,EXCH,Finance,Exchequer Services,Agency Staff,09/04/2014,"10,640.34",1281503,A036958,Comensura Limited
North West Leicestershire District Council,31UH ,HS,Housing Strategy,Community - Housing Strategy,Grants,09/04/2014,"9,350.00",1281513,A000530,East Midlands Housing Assocn
North West Leicestershire District Council,31UH ,HS,Housing Strategy,Community - Housing Strategy,Grants,09/04/2014,"1,012.00",1281514,A013575,North West Leicestershire
North West Leicestershire District Council,31UH ,HRAHM,Housing,HRA Housing Management,Contract Cleaning,09/04/2014,"1,460.38",1281557,A000950,Leicestershire County Council
North West Leicestershire District Council,31UH ,HRAHM,Housing,HRA Housing Management,Contract Cleaning,09/04/2014,"5,811.26",1281558,A000950,Leicestershire County Council
North West Leicestershire District Council,31UH ,HRAHM,Housing,HRA Housing Management,Contract Cleaning,09/04/2014,"5,809.28",1281559,A000958,ESPO
North West Leicestershire District Council,31UH ,ENOWM,Street Management,Environment Waste Management,Publicity & Promotion,09/04/2014,"1,435.00",1281596,A036860,Agripa Solutions Limited
North West Leicestershire District Council,31UH ,HRAHRM,Housing Repairs,HRA Housing Repairs & Maintenance,Front Door - Timber,09/04/2014,"9,350.81",1281648,A039980,Kier Services Maintenance East Ltd
North West Leicestershire District Council,31UH ,LCM,Leisure & Culture,Leisure & Cult Mangt,Other Miscellaneous Expenses,09/04/2014,648.00,1281650,A041337,Michele Crooks
North West Leicestershire District Council,31UH ,HRAHRM,Housing Repairs,HRA Housing Repairs & Maintenance,Contract Payments (Dws) Ext,09/04/2014,"29,943.84",1281657,A039980,Kier Services Maintenance East Ltd
North West Leicestershire District Council,31UH ,PROPFM,Property Services,Property Facilities Management,Electricity,09/04/2014,"3,876.10",1281672,A030266,Southern Electric
North West Leicestershire District Council,31UH ,HS,Housing Strategy,Community - Housing Strategy,Grants,09/04/2014,"4,905.00",1281673,A000780,Homestart (N.W. Leics)
North West Leicestershire District Council,31UH ,FINPLA,Finance,Financial Planning,Non Scheduled Maintenance - Parts,09/04/2014,"1,097.00",1281676,A034516,Asset Advantage Limited
North West Leicestershire District Council,31UH ,EXCH,Finance,Exchequer Services,Collection - Cash,09/04/2014,"1,146.45",1281677,A004468,Kings Armoured Security Services Ltd
North West Leicestershire District Council,31UH ,HRAHM,Housing,HRA Housing Management,Contract Cleaning,09/04/2014,663.81,1281679,A000950,Leicestershire County Council
North West Leicestershire District Council,31UH ,NACCS,Neighbourhoods & Communities,N & C Community Safety,Extended Services,09/04/2014,"7,200.00",1281697,A000780,Homestart (N.W. Leics)
North West Leicestershire District Council,31UH ,NACCS,Neighbourhoods & Communities,N & C Community Safety,Extended Services,09/04/2014,"7,600.00",1281698,A000780,Homestart (N.W. Leics)
North West Leicestershire District Council,31UH ,NACCS,Neighbourhoods & Communities,N & C Community Safety,Extended Services,09/04/2014,"1,798.20",1281699,A000780,Homestart (N.W. Leics)
North West Leicestershire District Council,31UH ,NACCS,Neighbourhoods & Communities,N & C Community Safety,Extended Services,09/04/2014,"1,787.00",1281700,A041247,Heart of England NHS Foundation Trust
North West Leicestershire District Council,31UH ,LDLS,Legal & Democratic,Legal Services,Interim Support,09/04/2014,"2,487.00",1281729,A016315,Marrons Consultancies Limited
North West Leicestershire District Council,31UH ,EXCH,Finance,Exchequer Services,Gas,08/04/2014,"18,967.56",1281736,A035709,Corona Energy Retail 4 Ltd
North West Leicestershire District Council,31UH ,EXCH,Finance,Exchequer Services,Gas,08/04/2014,"4,590.15",1281737,A000958,ESPO
North West Leicestershire District Council,31UH ,ICT,Information Technology,ICT Services,Telephone Charge / Rental,09/04/2014,"5,723.81",1281831,A008908,Virgin Media Business
North West Leicestershire District Council,31UH ,HR,Corporate Director,Human Resources,Items To Be Leased,09/04/2014,"2,318.72",1281835,A039405,Inchcape Fleet Solutions
North West Leicestershire District Council,31UH ,FINPLA,Finance,Financial Planning,Legal & Professional Services,09/04/2014,"14,304.00",1281838,A036332,Datatank
North West Leicestershire District Council,31UH ,PROPFM,Property Services,Property Facilities Management,Water Charges (Metered),09/04/2014,"1,845.02",1281841,A001468,Severn Trent Water Limited
North West Leicestershire District Council,31UH ,HRAHRM,Housing Repairs,HRA Housing Repairs & Maintenance,Front Door - Timber,09/04/2014,"549,560.87",1282027,A039980,Kier Services Maintenance East Ltd
North West Leicestershire District Council,31UH ,HRAHRM,Housing Repairs,HRA Housing Repairs & Maintenance,Consultants Fees,09/04/2014,"3,234.42",1282028,A039973,Lovell Partnerships Ltd
North West Leicestershire District Council,31UH ,HRAHRM,Housing Repairs,HRA Housing Repairs & Maintenance,Front Door - Timber,09/04/2014,"496,168.41",1282029,A039973,Lovell Partnerships Ltd
North West Leicestershire District Council,31UH ,HRAHRM,Housing Repairs,HRA Housing Repairs & Maintenance,Front Door - Timber,09/04/2014,"496,168.41",1282030,A039973,Lovell Partnerships Ltd
North West Leicestershire District Council,31UH ,LDLS,Legal & Democratic,Legal Services,Legal & Professional Services,15/04/2014,540.00,1282032,A031366,Bevan Brittan
North West Leicestershire District Council,31UH ,EXCH,Finance,Exchequer Services,Agency Staff,15/04/2014,"12,532.71",1282064,A036958,Comensura Limited
North West Leicestershire District Council,31UH ,HRAHM,Housing,HRA Housing Management,Contract Cleaning,15/04/2014,"5,809.28",1282093,A000950,Leicestershire County Council
North West Leicestershire District Council,31UH ,CULTIC,Leisure & Culture,Cultural Services TIC,Premises Rents,15/04/2014,537.50,1282106,A000950,Leicestershire County Council
North West Leicestershire District Council,31UH ,CULTIC,Leisure & Culture,Cultural Services TIC,Computing,15/04/2014,"1,650.00",1282116,A035114,New Vision Group Ltd
North West Leicestershire District Council,31UH ,NACCS,Neighbourhoods & Communities,N & C Community Safety,Extended Services,15/04/2014,"3,789.00",1282119,A041247,Heart of England NHS Foundation Trust
North West Leicestershire District Council,31UH ,NACCS,Neighbourhoods & Communities,N & C Community Safety,Extended Services,15/04/2014,683.31,1282121,A024378,Hays Human Resources
North West Leicestershire District Council,31UH ,NACN,Neighbourhoods & Communities,N & C Neighbourhoods,Extended Services,15/04/2014,683.31,1282122,A024378,Hays Human Resources
North West Leicestershire District Council,31UH ,CULTYP,Leisure & Culture,Cultural Services Children & YoungPeople,Extended Services,15/04/2014,"1,125.00",1282129,A039090,Safe Start-Home Safety
North West Leicestershire District Council,31UH ,HLC,Leisure Centres,Hermitage Leisure Centre,Water Charges (Metered),15/04/2014,"1,558.91",1282167,A001468,Severn Trent Water Limited
North West Leicestershire District Council,31UH ,EES,Environmental Health,Environmental Services,Stray Dog Service,15/04/2014,940.07,1282233,A000385,College Garth Boarding Kennels
North West Leicestershire District Council,31UH ,ESS,Street Management,Environment - Street Scene,Electricity,15/04/2014,"1,204.09",1282236,A030266,Southern Electric
North West Leicestershire District Council,31UH ,EES,Environmental Health,Environmental Services,Contaminated Land Officer,15/04/2014,"9,962.38",1282265,A008631,Harborough District Council
North West Leicestershire District Council,31UH ,HPLC,Leisure Centres,Hood Park Leisure Centre,Electricity,15/04/2014,"1,374.72",1282267,A030266,Southern Electric
North West Leicestershire District Council,31UH ,HPLC,Leisure Centres,Hood Park Leisure Centre,Water Charges (Metered),15/04/2014,953.08,1282268,A001468,Severn Trent Water Limited
North West Leicestershire District Council,31UH ,HS,Housing Strategy,Community - Housing Strategy,Rent Deposit Scheme,15/04/2014,535.71,1282272,A039294,SJN Property Services
North West Leicestershire District Council,31UH ,PROPCL,Property Services,Property Commercial Lettings,Telephones,15/04/2014,681.04,1282284,A000233,British Telecommunications Plc
North West Leicestershire District Council,31UH ,CS,Communications,Corporate - Customer Services,Postages,24/04/2014,"7,000.00",1282477,A000079,Neopost Limited
North West Leicestershire District Council,31UH ,HRAHRM,Housing Repairs,HRA Housing Repairs & Maintenance,Consultants Fees,24/04/2014,625.00,1282531,A036053,Cope Safety Management Limited
North West Leicestershire District Council,31UH ,EXCH,Finance,Exchequer Services,Agency Staff,24/04/2014,"5,129.81",1282547,A036958,Comensura Limited
North West Leicestershire District Council,31UH ,ENOT,Street Management,Environment Transport,Licences - Road Fund Licence,24/04/2014,"3,185.00",1282558,A008559,Post Office Limited
North West Leicestershire District Council,31UH ,HRAHM,Housing,HRA Housing Management,Furniture,24/04/2014,625.46,1282569,A041370,Custom Group Ltd
North West Leicestershire District Council,31UH ,HRAHM,Housing,HRA Housing Management,Furniture,24/04/2014,"1,401.42",1282570,A041370,Custom Group Ltd
North West Leicestershire District Council,31UH ,ESS,Street Management,Environment - Street Scene,Private Owners,24/04/2014,"8,766.90",1282572,A000950,Leicestershire County Council
North West Leicestershire District Council,31UH ,ESS,Street Management,Environment - Street Scene,Private Owners,24/04/2014,"4,811.17",1282573,A037057,D'Zign Uk Group
North West Leicestershire District Council,31UH ,HRAHM,Housing,HRA Housing Management,Place Based Envirnmental Improvements,24/04/2014,800.00,1282583,A000950,Leicestershire County Council
North West Leicestershire District Council,31UH ,ECCTV,Planning & Development,Environment - Town Centre/CCTV,Subscriptions,24/04/2014,636.00,1282586,A032899,National Association of British
North West Leicestershire District Council,31UH ,ECCTV,Planning & Development,Environment - Town Centre/CCTV,Telephones,24/04/2014,"7,396.18",1282587,A033730,BT Redcare
North West Leicestershire District Council,31UH ,LDELC,Legal & Democratic,Electoral & Land Charges,Other Miscellaneous Expenses,24/04/2014,"1,477.63",1282651,A001476,Shaw & Sons Ltd
North West Leicestershire District Council,31UH ,HLC,Leisure Centres,Hermitage Leisure Centre,Electricity,24/04/2014,"2,534.35",1282652,A030266,Southern Electric
North West Leicestershire District Council,31UH ,FINPLA,Finance,Financial Planning,Electricity,24/04/2014,"15,758.24",1282659,A034733,British Gas Business
North West Leicestershire District Council,31UH ,NACCS,Neighbourhoods & Communities,N & C Community Safety,Positive Activities for Young People Exp,24/04/2014,"9,669.00",1282690,A036769,Centre for Fun and Families Ltd
North West Leicestershire District Council,31UH ,HR,Corporate Director,Human Resources,Subscriptions,24/04/2014,810.00,1282824,A036902,XpertHR
North West Leicestershire District Council,31UH ,CULTYP,Leisure & Culture,Cultural Services Children & YoungPeople,Positive Activities for Young People Exp,24/04/2014,"9,840.00",1282826,A041372,"Relate Leicester, Leicestershire and Rut"
North West Leicestershire District Council,31UH ,CULTYP,Leisure & Culture,Cultural Services Children & YoungPeople,Positive Activities for Young People Exp,24/04/2014,"5,364.00",1282827,A040925,Community Education & Enterprise Projects
North West Leicestershire District Council,31UH ,CULTYP,Leisure & Culture,Cultural Services Children & YoungPeople,Positive Activities for Young People Exp,24/04/2014,"2,374.40",1282828,A033631,Heartland Youth for Christ
North West Leicestershire District Council,31UH ,CULTYP,Leisure & Culture,Cultural Services Children & YoungPeople,Positive Activities for Young People Exp,24/04/2014,"5,886.00",1282829,A040311,ADHD Solutions
North West Leicestershire District Council,31UH ,NACCS,Neighbourhoods & Communities,N & C Community Safety,Positive Activities for Young People Exp,24/04/2014,"1,756.50",1282830,A038953,Leicestershire Fire & Rescue Service
North West Leicestershire District Council,31UH ,HRAHM,Housing,HRA Housing Management,Gas,24/04/2014,"1,911.48",1282838,A000958,ESPO
North West Leicestershire District Council,31UH ,EXCH,Finance,Exchequer Services,Agency Staff,30/04/2014,"8,886.41",1282873,A036958,Comensura Limited
North West Leicestershire District Council,31UH ,EEHL,Environmental Health,Environmental Health & Licensing,Grants,30/04/2014,"2,560.74",1282875,A001092,John Merison BMC Ltd
North West Leicestershire District Council,31UH ,EEHL,Environmental Health,Environmental Health & Licensing,Grants,30/04/2014,"1,312.98",1282876,A001092,John Merison BMC Ltd
North West Leicestershire District Council,31UH ,ESS,Street Management,Environment - Street Scene,Sewerage & Environmental,30/04/2014,"5,624.32",1282885,A001468,Severn Trent Water Limited
North West Leicestershire District Council,31UH ,ESS,Street Management,Environment - Street Scene,Sewerage & Environmental,30/04/2014,562.83,1282886,A001468,Severn Trent Water Limited
North West Leicestershire District Council,31UH ,ESS,Street Management,Environment - Street Scene,Sewerage & Environmental,30/04/2014,959.80,1282889,A001468,Severn Trent Water Limited
North West Leicestershire District Council,31UH ,HRAHM,Housing,HRA Housing Management,Subscriptions,30/04/2014,"4,687.20",1282893,A041384,The Housing Ombudsman
North West Leicestershire District Council,31UH ,HRAHM,Housing,HRA Housing Management,Gas,29/04/2014,"1,684.10",1282985,A035709,Corona Energy Retail 4 Ltd
North West Leicestershire District Council,31UH ,ICT,Information Technology,ICT Services,Equipment Operating Leases,29/04/2014,"1,167.59",1282991,A001301,The Danwood Group Ltd
North West Leicestershire District Council,31UH ,HRAHM,Housing,HRA Housing Management,Water Charges (Metered),29/04/2014,"4,548.12",1283096,A001468,Severn Trent Water Limited
North West Leicestershire District Council,31UH ,ENOT,Street Management,Environment Transport,Purchases,30/04/2014,"19,346.87",1281501,A040946,Hall Fuels (Division of Watson Petroleum)
North West Leicestershire District Council,31UH ,HRAPBS,Housing,HRA Performance & Business Support,Insurance - Tenants Contributions,30/04/2014,"9,425.34",1282943,A037657,Jardine Lloyd Thompson
North West Leicestershire District Council,31UH ,HS,Housing Strategy,Community - Housing Strategy,Grants,30/04/2014,"4,200.00",1282945,A000950,Leicestershire County Council
North West Leicestershire District Council,31UH ,CULTYP,Leisure & Culture,Cultural Services Children & YoungPeople,Positive Activities for Young People Exp,30/04/2014,"7,875.00",1282946,A040478,Worth-it Projects (social enterprise)
North West Leicestershire District Council,31UH ,LDLS,Legal & Democratic,Legal Services,Legal & Professional Services,30/04/2014,500.00,1282950,A030198,No 5 Chambers Ltd
North West Leicestershire District Council,31UH ,EXCH,Finance,Exchequer Services,Expenditure against earmarked reserve,30/04/2014,"1,700.00",1282969,A010859,Selima Limited
North West Leicestershire District Council,31UH ,HRAHM,Housing,HRA Housing Management,Legal & Professional Services,30/04/2014,"2,147.57",1283015,A041396,Miss K D Regan
North West Leicestershire District Council,31UH ,EES,Environmental Health,Environmental Services,Private Owners,30/04/2014,"4,811.17",1283017,A037057,D'Zign Uk Group
North West Leicestershire District Council,31UH ,HRAHRM,Housing Repairs,HRA Housing Repairs & Maintenance,Contract Payments (Dws) Ext,30/04/2014,"22,189.54",1283093,A039980,Kier Services Maintenance East Ltd
North West Leicestershire District Council,31UH ,HRAPBS,Housing,HRA Performance & Business Support,Computing,02/04/2014,"3,010.00",1281448,A032953,M3 Housing Limited
North West Leicestershire District Council,31UH ,ENOT,Street Management,Environment Transport,Items To Be Leased,02/04/2014,"51,000.00",1281447,A028216,Finning (UK) Ltd
North West Leicestershire District Council,31UH ,HRAHRM,Housing Repairs,HRA Housing Repairs & Maintenance,Consultants Fees,02/04/2014,"2,212.00",1281199,A032547,Savills Commercial Limited
North West Leicestershire District Council,31UH ,EXCH,Finance,Exchequer Services,Computing,02/04/2014,"8,169.11",1281177,A002968,Capita Business Services Ltd
North West Leicestershire District Council,31UH ,ESS,Street Management,Environment - Street Scene,Cleaning & Domestic Equipment,09/04/2014,696.44,1281491,A009237,Phs Group Ltd
North West Leicestershire District Council,31UH ,ICT,Information Technology,ICT Services,Administrative Equipment,09/04/2014,950.00,1281500,A034157,Idox Software Ltd
North West Leicestershire District Council,31UH ,HRAPBS,Housing,HRA Performance & Business Support,Consultation,02/04/2014,"3,165.00",1281098,A034754,Customer Research Technology Ltd
North West Leicestershire District Council,31UH ,HRAPBS,Housing,HRA Performance & Business Support,Expenditure against earmarked reserve,02/04/2014,"1,685.80",1281065,A038715,ConsultCIH Limited
North West Leicestershire District Council,31UH ,ICT,Information Technology,ICT Services,Contract Payments (Other) Ext,02/04/2014,"17,569.92",1279989,A034753,ANS Group Plc
North West Leicestershire District Council,31UH ,CP,Communications,Corporate - Communications,Operational Equipment,02/04/2014,"3,500.00",1279706,A016321,Access Intelligence Media & Communications Limited
North West Leicestershire District Council,31UH ,HRAOPS,Housing,HRA Older Persons Service,Transitional Protection,02/04/2014,500.56,1281195,A000950,Leicestershire County Council
North West Leicestershire District Council,31UH ,ENOT,Street Management,Environment Transport,Subscriptions,09/04/2014,680.00,1281459,A027981,Freight Transport Association
North West Leicestershire District Council,31UH ,ENOT,Street Management,Environment Transport,Repairs - Parts,02/04/2014,594.90,1280979,A039355,Johnston Sweepers Ltd
North West Leicestershire District Council,31UH ,ENOT,Street Management,Environment Transport,Repairs - Parts,09/04/2014,"1,196.42",1281474,A017053,Aebi Schmidt Uk Limited
North West Leicestershire District Council,31UH ,EXCH,Finance,Exchequer Services,Computer Development,09/04/2014,"2,237.50",1281550,A025004,Total Mobile
North West Leicestershire District Council,31UH ,ENOWM,Street Management,Environment Waste Management,Consultants Fees,09/04/2014,"1,652.00",1281494,A018837,Apse
North West Leicestershire District Council,31UH ,HLC,Leisure Centres,Hermitage Leisure Centre,Protective Clothing,09/04/2014,"1,422.70",1279940,A030776,Keltic
North West Leicestershire District Council,31UH ,EDC,Planning & Development,Environment - Development Control,Advertising,09/04/2014,636.83,1281452,A001395,Euro RSCG People T/A Havas People Ltd
North West Leicestershire District Council,31UH ,HRAHRM,Housing Repairs,HRA Housing Repairs & Maintenance,Derv,09/04/2014,"14,893.47",1281832,A000951,Leicestershire County Council
North West Leicestershire District Council,31UH ,CHEX,Chief Exec,Chief Executive,Subscriptions,09/04/2014,"9,099.38",1281580,A002189,Local Government Association
North West Leicestershire District Council,31UH ,PROPCL,Property Services,Property Commercial Lettings,Postages,09/04/2014,"2,020.00",1281587,A008204,Purchase Power
North West Leicestershire District Council,31UH ,ENOT,Street Management,Environment Transport,Gas,09/04/2014,"1,071.46",1281569,A032686,Calor Gas Limited
North West Leicestershire District Council,31UH ,HRAPBS,Housing,HRA Performance & Business Support,Training Expenses,09/04/2014,"1,145.83",1281583,A040435,Kaplan Financial
North West Leicestershire District Council,31UH ,ESS,Street Management,Environment - Street Scene,Agency Staff,09/04/2014,692.39,1281606,A031571,HBHC Synergy Ltd
North West Leicestershire District Council,31UH ,ECCTV,Planning & Development,Environment - Town Centre/CCTV,Cleaning & Domestic Equipment,09/04/2014,831.00,1281531,A009237,Phs Group Ltd
North West Leicestershire District Council,31UH ,HRAHRM,Housing Repairs,HRA Housing Repairs & Maintenance,Protective Clothing,09/04/2014,759.20,1281561,A009933,Westbury Industrial Supplies Limited
North West Leicestershire District Council,31UH ,ICT,Information Technology,ICT Services,ICT equipment,09/04/2014,"1,381.98",1280449,A032931,Multidata (Europe) Ltd
North West Leicestershire District Council,31UH ,HLC,Leisure Centres,Hermitage Leisure Centre,Service Contracts,09/04/2014,"5,651.49",1281620,A034390,ENER.G Combined Power Ltd
North West Leicestershire District Council,31UH ,CDCC,Leisure Centres,Castle Donington Community College,Alternative Fitness Suite,09/04/2014,522.58,1281621,A005413,Elliott Group Limited
North West Leicestershire District Council,31UH ,PROPFM,Property Services,Property Facilities Management,Green Footprints Exp,09/04/2014,"4,208.00",1281595,A031787,Laker BMS Ltd
North West Leicestershire District Council,31UH ,PROPCL,Property Services,Property Commercial Lettings,Management Company,09/04/2014,"1,349.72",1281670,A033712,A R ARGYLE
North West Leicestershire District Council,31UH ,PROPCL,Property Services,Property Commercial Lettings,Management Company,09/04/2014,"2,035.12",1281671,A033712,A R ARGYLE
North West Leicestershire District Council,31UH ,ICT,Information Technology,ICT Services,Admin Equipment - Maintenance,09/04/2014,"3,815.60",1281678,A038473,Cable & Wireless Worldwide
North West Leicestershire District Council,31UH ,HLBC,Leisure Centres,Hermitage Bar & Catering,Bar Provisions,09/04/2014,578.06,1281602,A039915,LWC - Birmingham
North West Leicestershire District Council,31UH ,ICT,Information Technology,ICT Services,Software Licences,09/04/2014,"68,477.45",1281669,A034157,Idox Software Ltd
North West Leicestershire District Council,31UH ,HLC,Leisure Centres,Hermitage Leisure Centre,Licences,09/04/2014,803.44,1281658,A009242,Experian Ltd
North West Leicestershire District Council,31UH ,PROPCL,Property Services,Property Commercial Lettings,Alt & Mtce-Fixed Plant,09/04/2014,"2,028.30",1281666,A003044,Secom Plc
North West Leicestershire District Council,31UH ,ENOWM,Street Management,Environment Waste Management,Hire Of Operational Equipment,09/04/2014,650.00,1281696,A026492,Leicestershire & Rutland Probation Board
North West Leicestershire District Council,31UH ,HR,Corporate Director,Human Resources,Purchases,09/04/2014,525.00,1281546,A028625,Specsavers Corporate Eyecare
North West Leicestershire District Council,31UH ,EEHL,Environmental Health,Environmental Health & Licensing,Agency Staff,09/04/2014,918.00,1281636,A031571,HBHC Synergy Ltd
North West Leicestershire District Council,31UH ,EEHL,Environmental Health,Environmental Health & Licensing,Subscriptions,09/04/2014,"1,000.00",1281637,A000103,Association Of Port Health Authorities
North West Leicestershire District Council,31UH ,ENOGT,Street Management,Environment General Technician,Routine Ground Maintenance,15/04/2014,"1,534.65",1282056,A000438,Cuckoo Gap Limited
North West Leicestershire District Council,31UH ,ENOGT,Street Management,Environment General Technician,Land Drainage,15/04/2014,739.50,1282057,A000438,Cuckoo Gap Limited
North West Leicestershire District Council,31UH ,ENOT,Street Management,Environment Transport,General Materials,15/04/2014,"1,153.45",1282063,A017624,BPI Recycled Products
North West Leicestershire District Council,31UH ,PROPCL,Property Services,Property Commercial Lettings,Consumable Cleaning Materials/Hygiene,09/04/2014,555.12,1281857,A009237,Phs Group Ltd
North West Leicestershire District Council,31UH ,ENOT,Street Management,Environment Transport,Good Vehicle Plating,09/04/2014,893.00,1281846,A033469,Anderson Commercials Limited
North West Leicestershire District Council,31UH ,HLC,Leisure Centres,Hermitage Leisure Centre,Service Contracts,15/04/2014,595.00,1281663,A001356,Radio Protection Services Limited
North West Leicestershire District Council,31UH ,ESS,Street Management,Environment - Street Scene,Contract Payments (Other) Ext,15/04/2014,"4,820.00",1281664,A040084,Streetscape (Products & Services) Ltd
North West Leicestershire District Council,31UH ,ENOT,Street Management,Environment Transport,Protective Clothing,15/04/2014,698.16,1282045,A009933,Westbury Industrial Supplies Limited
North West Leicestershire District Council,31UH ,ENOGT,Street Management,Environment General Technician,Routine Ground Maintenance,15/04/2014,"1,356.20",1282053,A000438,Cuckoo Gap Limited
North West Leicestershire District Council,31UH ,CS,Communications,Corporate - Customer Services,Protective Clothing,15/04/2014,520.05,1281135,A030776,Keltic
North West Leicestershire District Council,31UH ,EEHL,Environmental Health,Environmental Health & Licensing,Vet Inspection,15/04/2014,883.15,1282040,A033670,Eville And Jones Limited
North West Leicestershire District Council,31UH ,HLC,Leisure Centres,Hermitage Leisure Centre,Measham LC Lifestyle DD,15/04/2014,"2,999.99",1282130,A027454,Measham Leisure Centre
North West Leicestershire District Council,31UH ,ENOT,Street Management,Environment Transport,Purchases,15/04/2014,760.38,1282104,A000625,Ford & Slater Group Ltd
North West Leicestershire District Council,31UH ,ENOT,Street Management,Environment Transport,Repairs - Parts,15/04/2014,573.63,1282110,A001647,Terberg Matec UK Limited
North West Leicestershire District Council,31UH ,HRAPBS,Housing,HRA Performance & Business Support,Training Expenses,15/04/2014,798.00,1279951,A002968,Capita Business Services Ltd
North West Leicestershire District Council,31UH ,PROPFM,Property Services,Property Facilities Management,Purchases,15/04/2014,"9,947.40",1282151,A033342,J Tomlinson Ltd
North West Leicestershire District Council,31UH ,ENOT,Street Management,Environment Transport,Scheduled Servicing - Parts,15/04/2014,815.00,1282139,A001128,Mitchell Diesel Ltd t/a Mitchell Power Systems
North West Leicestershire District Council,31UH ,PROPFM,Property Services,Property Facilities Management,Cleaning & Domestic Equipment,15/04/2014,850.00,1282153,A037981,LTT Vending Limited
North West Leicestershire District Council,31UH ,HR,Corporate Director,Human Resources,Subscriptions,15/04/2014,810.00,1282172,A036902,XpertHR
North West Leicestershire District Council,31UH ,ENOWM,Street Management,Environment Waste Management,Expenditure against earmarked reserve,15/04/2014,"3,000.00",1281629,A041243,Whitespace Work Software Ltd
North West Leicestershire District Council,31UH ,EDC,Planning & Development,Environment - Development Control,Advertising,15/04/2014,724.52,1282144,A001395,Euro RSCG People T/A Havas People Ltd
North West Leicestershire District Council,31UH ,HRACS,Housing,HRA Customer Services,Expenditure against earmarked reserve,15/04/2014,641.00,1281521,A000958,ESPO
North West Leicestershire District Council,31UH ,ICT,Information Technology,ICT Services,Corporate IT Licences,15/04/2014,"14,860.00",1281714,A016303,Esri (Uk) Ltd
North West Leicestershire District Council,31UH ,PROPFM,Property Services,Property Facilities Management,General Repairs,15/04/2014,850.00,1282089,A002190,Spectra Security Limited
North West Leicestershire District Council,31UH ,PROPFM,Property Services,Property Facilities Management,Purchases,15/04/2014,"2,150.00",1282225,A035772,Wm Saunders Partnership LLP
North West Leicestershire District Council,31UH ,ENOWM,Street Management,Environment Waste Management,Expenditure against earmarked reserve,15/04/2014,717.96,1281630,A041243,Whitespace Work Software Ltd
North West Leicestershire District Council,31UH ,ESS,Street Management,Environment - Street Scene,Payments To Contractor,15/04/2014,700.00,1281632,A038339,AS Autos Leicester Limited
North West Leicestershire District Council,31UH ,HRATP,Housing,HRA Tenant Participation,Annual Report To Tenants,15/04/2014,769.00,1281662,A037241,Taylor Bloxham Ltd
North West Leicestershire District Council,31UH ,CP,Communications,Corporate - Communications,Advertising,15/04/2014,589.59,1282074,A001395,Euro RSCG People T/A Havas People Ltd
North West Leicestershire District Council,31UH ,HRAHRM,Housing Repairs,HRA Housing Repairs & Maintenance,Computing,15/04/2014,"10,365.50",1282091,A036895,Bramble.cc Limited
North West Leicestershire District Council,31UH ,ENOT,Street Management,Environment Transport,Non Scheduled Maintenance - Parts,15/04/2014,563.05,1282102,A000625,Ford & Slater Group Ltd
North West Leicestershire District Council,31UH ,ENOGT,Street Management,Environment General Technician,Routine Ground Maintenance,15/04/2014,"1,533.75",1282054,A000438,Cuckoo Gap Limited
North West Leicestershire District Council,31UH ,HPBC,Leisure Centres,Hood Park Bar and Catering,Bar Provisions,15/04/2014,708.68,1282283,A001264,Palmer Harvey Mclane Ltd
North West Leicestershire District Council,31UH ,HLC,Leisure Centres,Hermitage Leisure Centre,GP Referral,15/04/2014,535.00,1281085,A037356,British Nordic Walking Limited
North West Leicestershire District Council,31UH ,ENOWM,Street Management,Environment Waste Management,Expenditure against earmarked reserve,15/04/2014,"30,000.00",1281502,A041243,Whitespace Work Software Ltd
North West Leicestershire District Council,31UH ,HRAPBS,Housing,HRA Performance & Business Support,Interim Support,15/04/2014,"2,321.41",1282069,A041207,Martin Valentine
North West Leicestershire District Council,31UH ,ESS,Street Management,Environment - Street Scene,Contract Payments (Other) Ext,15/04/2014,"1,841.32",1281525,A008325,Palmar & Associates Ltd
North West Leicestershire District Council,31UH ,ENOWM,Street Management,Environment Waste Management,Expenditure against earmarked reserve,15/04/2014,"8,000.00",1281526,A041243,Whitespace Work Software Ltd
North West Leicestershire District Council,31UH ,ENOWM,Street Management,Environment Waste Management,Expenditure against earmarked reserve,15/04/2014,"5,400.00",1281628,A041243,Whitespace Work Software Ltd
North West Leicestershire District Council,31UH ,CHEX,Chief Exec,Chief Executive,Contributions,15/04/2014,"2,578.00",1282235,A000950,Leicestershire County Council
North West Leicestershire District Council,31UH ,HPLC,Leisure Centres,Hood Park Leisure Centre,Service Contracts,15/04/2014,"5,651.49",1282243,A034390,ENER.G Combined Power Ltd
North West Leicestershire District Council,31UH ,HPLC,Leisure Centres,Hood Park Leisure Centre,Service Contracts,24/04/2014,595.00,1282459,A001356,Radio Protection Services Limited
North West Leicestershire District Council,31UH ,PROPCL,Property Services,Property Commercial Lettings,Internal Decorations,24/04/2014,552.50,1282465,A003371,Urban Planters Leicestershire (limited)
North West Leicestershire District Council,31UH ,ICT,Information Technology,ICT Services,Machinery & Equipment,24/04/2014,"1,209.00",1282224,A032826,Freedom Communications (UK) Ltd
North West Leicestershire District Council,31UH ,PROPFM,Property Services,Property Facilities Management,Cleaning & Domestic Equipment,15/04/2014,"1,166.53",1282227,A009237,Phs Group Ltd
North West Leicestershire District Council,31UH ,PROPFM,Property Services,Property Facilities Management,Door Access Systems,15/04/2014,"1,579.00",1282291,A002190,Spectra Security Limited
North West Leicestershire District Council,31UH ,ENOT,Street Management,Environment Transport,Hire Of Operational Equipment,24/04/2014,"10,200.00",1282475,A002693,Leicestershire County Counc
North West Leicestershire District Council,31UH ,CHEX,Chief Exec,Chief Executive,External Legal Fees & Advice,24/04/2014,"3,345.20",1282485,A041332,Sharp Planning Plus Ltd
North West Leicestershire District Council,31UH ,CHEX,Chief Exec,Chief Executive,External Legal Fees & Advice,24/04/2014,"6,201.90",1282486,A041332,Sharp Planning Plus Ltd
North West Leicestershire District Council,31UH ,ENOT,Street Management,Environment Transport,Operational Equipment - Rep & Maint,24/04/2014,"4,740.00",1282628,A032627,Pakawaste Ltd
North West Leicestershire District Council,31UH ,HLC,Leisure Centres,Hermitage Leisure Centre,Royalties,24/04/2014,"2,693.62",1282658,A001300,Phonographic Performances Ltd
North West Leicestershire District Council,31UH ,ENOT,Street Management,Environment Transport,Hire Of Operational Equipment,24/04/2014,"1,700.00",1282474,A002693,Leicestershire County Counc
North West Leicestershire District Council,31UH ,ENOT,Street Management,Environment Transport,Items To Be Leased,24/04/2014,"46,165.00",1282557,A039355,Johnston Sweepers Ltd
North West Leicestershire District Council,31UH ,ICT,Information Technology,ICT Services,Consumable Materials,24/04/2014,543.33,1282568,A038178,Antalis Limited
North West Leicestershire District Council,31UH ,ICT,Information Technology,ICT Services,Contract Payments (Other) Ext,24/04/2014,"36,400.21",1281840,A034753,ANS Group Plc
North West Leicestershire District Council,31UH ,ICT,Information Technology,ICT Services,Contract Payments (Other) Ext,24/04/2014,"8,526.84",1282180,A034753,ANS Group Plc
North West Leicestershire District Council,31UH ,ICT,Information Technology,ICT Services,Contract Payments (Other) Ext,24/04/2014,"11,900.76",1282293,A034753,ANS Group Plc
North West Leicestershire District Council,31UH ,LDCE,Legal & Democratic,Civic Expenses,Operational Equipment,24/04/2014,"12,000.00",1282537,A041342,Xpress Software Solutions
North West Leicestershire District Council,31UH ,ENOT,Street Management,Environment Transport,Repairs - Parts,24/04/2014,723.08,1282538,A028216,Finning (UK) Ltd
North West Leicestershire District Council,31UH ,ICT,Information Technology,ICT Services,Admin Equipment - Maintenance,30/04/2014,"1,100.00",1282223,A032826,Freedom Communications (UK) Ltd
North West Leicestershire District Council,31UH ,PROPCL,Property Services,Property Commercial Lettings,Contract Cleaning,30/04/2014,506.18,1282606,A003037,Coalville Cleaning Services
North West Leicestershire District Council,31UH ,ICT,Information Technology,ICT Services,Corporate IT Licences,30/04/2014,529.79,1282609,A036174,Oracle Corporation UK Ltd.
North West Leicestershire District Council,31UH ,ICT,Information Technology,ICT Services,Admin Equipment - Maintenance,30/04/2014,"6,750.00",1282618,A034753,ANS Group Plc
North West Leicestershire District Council,31UH ,ENOGT,Street Management,Environment General Technician,Land Drainage,30/04/2014,545.00,1282843,A000438,Cuckoo Gap Limited
North West Leicestershire District Council,31UH ,ENOT,Street Management,Environment Transport,Transport Costs - Tyres,30/04/2014,"5,980.00",1282846,A035175,Malvern Tyres
North West Leicestershire District Council,31UH ,ICT,Information Technology,ICT Services,Administrative Equipment,30/04/2014,900.00,1282866,A001701,Tunstall Healthcare (UK) Limited
North West Leicestershire District Council,31UH ,ICT,Information Technology,ICT Services,Consumable Materials,30/04/2014,850.00,1282867,A033406,Alfred Willday & Son Ltd
North West Leicestershire District Council,31UH ,HRAHM,Housing,HRA Housing Management,Legal & Professional Services,30/04/2014,840.00,1282877,A032437,Sinclairs Estate Agents
North West Leicestershire District Council,31UH ,HRAHM,Housing,HRA Housing Management,Training Expenses,30/04/2014,"1,450.00",1282878,A033400,Housing Partners Ltd
North West Leicestershire District Council,31UH ,ENOT,Street Management,Environment Transport,Purchases,30/04/2014,928.95,1282879,A037391,Emo Oil Limited
North West Leicestershire District Council,31UH ,HPLC,Leisure Centres,Hood Park Leisure Centre,Equipment For Resale,24/04/2014,"1,573.29",1282240,A001833,Zoggs International Ltd
North West Leicestershire District Council,31UH ,ENOT,Street Management,Environment Transport,Items To Be Leased,24/04/2014,"9,314.37",1282482,A041004,Ford Motor Company Ltd
North West Leicestershire District Council,31UH ,ENOT,Street Management,Environment Transport,Items To Be Leased,24/04/2014,"9,314.37",1282483,A041004,Ford Motor Company Ltd
North West Leicestershire District Council,31UH ,ENOT,Street Management,Environment Transport,Items To Be Leased,24/04/2014,"9,314.37",1282484,A041004,Ford Motor Company Ltd
North West Leicestershire District Council,31UH ,ENOT,Street Management,Environment Transport,Non Scheduled Maintenance - Parts,24/04/2014,503.95,1282553,A000625,Ford & Slater Group Ltd
North West Leicestershire District Council,31UH ,ENOP,Street Management,Environment Parks,Asset Protection,24/04/2014,937.50,1282577,A000546,Edmundson Electrical Limited
North West Leicestershire District Council,31UH ,ENOWM,Street Management,Environment Waste Management,Expenditure against earmarked reserve,24/04/2014,"3,000.00",1282629,A041243,Whitespace Work Software Ltd
North West Leicestershire District Council,31UH ,LDLS,Legal & Democratic,Legal Services,Subscriptions,24/04/2014,750.00,1282694,A040432,Recognising Excellence Ltd
North West Leicestershire District Council,31UH ,ENOT,Street Management,Environment Transport,Purchases,30/04/2014,"15,511.88",1282880,A040946,Hall Fuels (Division of Watson Petroleum)
North West Leicestershire District Council,31UH ,ICT,Information Technology,ICT Services,Admin Equipment - Maintenance,30/04/2014,999.00,1282881,A038473,Cable & Wireless Worldwide
North West Leicestershire District Council,31UH ,HLC,Leisure Centres,Hermitage Leisure Centre,Licences,30/04/2014,803.44,1282902,A009242,Experian Ltd
North West Leicestershire District Council,31UH ,HPLC,Leisure Centres,Hood Park Leisure Centre,Electricity,30/04/2014,912.35,1282913,A002200,L.C.C.Ivanhoe College
North West Leicestershire District Council,31UH ,CHEX,Chief Exec,Chief Executive,External Legal Fees & Advice,30/04/2014,"6,310.40",1282920,A041332,Sharp Planning Plus Ltd
North West Leicestershire District Council,31UH ,HLC,Leisure Centres,Hermitage Leisure Centre,Service Contracts,30/04/2014,"6,222.45",1282926,A001642,Technogym Uk Limited
North West Leicestershire District Council,31UH ,ENOP,Street Management,Environment Parks,External Materials,30/04/2014,"2,549.76",1282927,A029311,George Walker Tree Care Ltd
North West Leicestershire District Council,31UH ,HLC,Leisure Centres,Hermitage Leisure Centre,gym equipemnt,30/04/2014,576.00,1282929,A038959,Physique Fitness Gym
North West Leicestershire District Council,31UH ,CODI,Community Directorate,Community Directorate,Expenditure against earmarked reserve,30/04/2014,"4,398.00",1282840,A039019,Wigan Leisure & Culture Trust
North West Leicestershire District Council,31UH ,HRAPBS,Housing,HRA Performance & Business Support,Computing,29/04/2014,"54,850.00",1282995,A041321,Oneserve Ltd
North West Leicestershire District Council,31UH ,ENOT,Street Management,Environment Transport,Operational Equipment,30/04/2014,"1,371.15",1282841,A028200,Amberol Limited
North West Leicestershire District Council,31UH ,ENOT,Street Management,Environment Transport,Repairs - Parts,30/04/2014,784.96,1282862,A000625,Ford & Slater Group Ltd
North West Leicestershire District Council,31UH ,ECCTV,Planning & Development,Environment - Town Centre/CCTV,Operational Equipment - Rep & Maint,30/04/2014,"6,141.00",1282951,A035493,Quadrant Security Group Limited
North West Leicestershire District Council,31UH ,PROPFM,Property Services,Property Facilities Management,General Repairs,30/04/2014,"1,621.00",1282956,A037013,Rentokil Initial UK Limited
North West Leicestershire District Council,31UH ,ENOT,Street Management,Environment Transport,Purchases,30/04/2014,"19,257.09",1282981,A040946,Hall Fuels (Division of Watson Petroleum)
North West Leicestershire District Council,31UH ,ESS,Street Management,Environment - Street Scene,Expenditure against earmarked reserve,30/04/2014,"1,079.53",1282581,A031571,HBHC Synergy Ltd
North West Leicestershire District Council,31UH ,ENOT,Street Management,Environment Transport,Repairs - Parts,30/04/2014,782.56,1282858,A037009,Sandicliffe Motor Group
North West Leicestershire District Council,31UH ,ICT,Information Technology,ICT Services,Admin Equipment - Maintenance,30/04/2014,"29,668.14",1282869,A034753,ANS Group Plc
North West Leicestershire District Council,31UH ,ICT,Information Technology,ICT Services,Admin Equipment - Maintenance,30/04/2014,"21,518.09",1282870,A034753,ANS Group Plc
North West Leicestershire District Council,31UH ,HRAHM,Housing,HRA Housing Management,Legal & Professional Services,30/04/2014,"3,230.00",1282954,A030943,rg+p
North West Leicestershire District Council,31UH ,ENOT,Street Management,Environment Transport,Hire Of Operational Equipment,30/04/2014,850.00,1282965,A002693,Leicestershire County Counc
North West Leicestershire District Council,31UH ,HLC,Leisure Centres,Hermitage Leisure Centre,Water Treatment,30/04/2014,989.89,1282980,A001591,Stowlin Ltd
North West Leicestershire District Council,31UH ,ENOT,Street Management,Environment Transport,Items To Be Leased,30/04/2014,"15,408.40",1283106,A039232,Polar Ford Barnsley
North West Leicestershire District Council,31UH ,HLBC,Leisure Centres,Hermitage Bar & Catering,Operational Equipment,30/04/2014,"1,799.99",1282963,A007087,Nisbets Plc
